bitfinex/quotes_ETHUSD_20240612
["timestamp","ask_amount","ask_price","bid_price","bid_amount"]
[1718178892433,0.869,3524.2,3523.7,0.86351979]
[1718178894486,0.869,3524.2,3523.8,0.03909163]
[1718178901230,3.70637,3524.4,3523.8,0.03909163]
[1718178906143,0.869,3524.2,3523.8,0.03909163]
[1718178906811,0.869,3524.2,3523.5,0.59553089]
[1718178907112,0.869,3524.2,3523.9,0.03901156]
[1718178907434,0.869,3524.2,3523.5,0.59553089]
[1718178907612,0.869,3524.2,3524.0,0.03894473]
[1718178907817,0.869,3524.2,3523.5,0.59553089]
[1718178908136,0.869,3524.2,3524.1,0.03887791]
[1718178908338,0.869,3524.2,3523.5,0.59553089]
[1718178908639,3.70659,3524.2,3523.5,0.59553089]
[1718178908940,3.70659,3524.2,3523.6,0.03921208]
[1718178909098,2.83759,3524.2,3523.6,2.4415639]
[1718178909502,2.83759,3524.2,3523.6,3.03709479]
[1718178909701,2.83759,3524.2,3523.7,0.59553089]
[1718178909938,2.83759,3524.2,3523.7,0.65228272]
[1718178910134,2.83759,3524.2,3523.8,0.0390784]
[1718178915657,2.83725,3524.6,3523.8,0.0390784]
[1718178915962,3.70625,3524.6,3523.8,0.09582672]
[1718178916352,2.83725,3524.6,3523.8,0.09582672]
[1718178916556,2.83725,3524.6,3524.0,0.59553089]
[1718178916724,2.83725,3524.6,3524.1,0.65227647]
[1718178916920,2.83725,3524.6,3524.1,0.09562349]
[1718178917321,2.83725,3524.6,3524.1,0.03887791]
[1718178918520,2.83725,3524.6,3524.0,0.59553089]
[1718178918734,2.83725,3524.6,3524.2,0.03881108]
[1718178920841,3.70625,3524.6,3523.9,0.59553089]
[1718178921076,3.70625,3524.6,3524.3,0.03873947]
[1718178921383,3.70625,3524.6,3523.9,0.59553089]
[1718178921942,3.70625,3524.6,3524.0,0.03893994]
[1718178922547,2.83725,3524.6,3524.0,0.03893994]
[1718178922747,3.70625,3524.6,3524.0,0.03893994]
[1718178925477,3.70625,3524.6,3524.0,0.38881993]
[1718178925678,2.83725,3524.6,3524.0,0.38881993]
[1718178925871,2.3826,3524.2,3524.0,0.03893994]
[1718178927092,2.3826,3524.2,3524.1,0.03887312]
[1718178927589,2.3826,3524.2,3523.8,0.59553089]
[1718178927795,2.3826,3524.2,3524.1,0.03887312]
[1718178927962,2.3826,3524.2,3523.7,0.59553089]
[1718178928161,2.3826,3524.2,3524.1,0.03887312]
[1718178928376,2.3826,3524.2,3523.7,0.59553089]
[1718178928560,2.83763,3524.1,3523.7,0.59553089]
[1718178933858,2.83763,3524.1,3523.8,0.03912327]
[1718178941101,2.83763,3524.1,3523.8,0.63465416]
[1718178941267,2.83763,3524.1,3523.8,0.87434921]
[1718178941468,2.83763,3524.1,3523.8,0.27881832]
[1718178948419,0.869,3524.4,3523.8,0.27881832]
[1718178948633,0.869,3524.4,3523.8,2.56011832]
[1718178952150,0.9134398,3524.4,3523.8,2.56011832]
[1718178954240,0.9134398,3524.4,3523.8,3.15564921]
[1718178954853,0.0444398,3524.4,3523.8,3.15564921]
[1718178961504,0.0444398,3524.4,3524.0,2.4518]
[1718178961995,0.0444398,3524.4,3524.1,0.03889627]
[1718178962310,0.0444398,3524.4,3524.3,2.4949]
[1718178962674,0.0444398,3524.4,3524.3,2.53387227]
[1718178962984,0.0444398,3524.4,3524.3,3.12614845]
[1718178963325,0.0444398,3524.4,3524.3,3.50308721]
[1718178963905,0.0444398,3524.4,3524.3,2.91081103]
[1718178964495,0.0444398,3524.4,3524.3,3.50297166]
[1718178965104,0.0444398,3524.4,3524.3,2.91081103]
[1718178965486,0.0444398,3524.4,3524.3,3.50297166]
[1718178966497,0.0444398,3524.4,3524.3,2.91081103]
[1718178967105,0.0444398,3524.4,3524.3,3.50297166]
[1718178967433,0.0444398,3524.4,3524.3,2.91081103]
[1718178967937,0.0444398,3524.4,3524.3,3.50297166]
[1718178969513,0.0444398,3524.4,3524.3,3.50221141]
[1718178971004,0.0444398,3524.4,3524.3,2.91081103]
[1718178992652,0.0444398,3524.4,3524.3,0.41591103]
[1718178992856,0.0444398,3524.4,3524.3,0.03897227]
[1718178993360,0.0444398,3524.4,3524.3,0.03842167]
[1718178993567,0.0444398,3524.4,3524.1,2.83759]
[1718178993766,0.0444398,3524.4,3524.3,0.03842167]
[1718178994067,0.0444398,3524.4,3524.1,2.83759]
[1718178994269,0.0444398,3524.4,3524.3,0.03848127]
[1718178994727,0.0444398,3524.4,3524.1,2.83759]
[1718178994930,0.0444398,3524.4,3524.3,0.03848127]
[1718178995142,0.0444398,3524.4,3524.1,2.83759]
[1718178995340,0.0444398,3524.4,3524.3,0.03848127]
[1718178995544,0.0444398,3524.4,3524.1,2.83759]
[1718178995750,0.0444398,3524.4,3524.2,0.03854808]
[1718179001449,0.0444398,3524.4,3524.2,0.62994846]
[1718179003455,0.0444398,3524.4,3524.3,0.59140038]
[1718179003836,0.0444398,3524.4,3524.3,0.62988165]
[1718179005258,0.0444398,3524.4,3524.3,0.03848127]
[1718179005664,0.0444398,3524.4,3524.2,2.86412338]
[1718179005839,0.0444398,3524.4,3524.3,0.03855923]
[1718179006240,0.0444398,3524.4,3524.2,0.89329634]
[1718179006436,0.0444398,3524.4,3524.3,0.03855923]
[1718179007154,0.0444398,3524.4,3524.2,2.86412338]
[1718179007364,0.0444398,3524.4,3524.3,0.09529999]
[1718179007849,0.0444398,3524.4,3524.3,0.98859633]
[1718179009476,0.0444398,3524.4,3524.3,0.09529999]
[1718179013348,0.0444398,3524.4,3524.3,0.03855923]
[1718179013687,0.0444398,3524.4,3524.2,3.16188883]
[1718179013885,0.0444398,3524.4,3524.3,0.03844005]
[1718179014068,0.0444398,3524.4,3524.3,0.09518077]
[1718179014553,0.0444398,3524.4,3524.3,0.98337329]
[1718179014891,0.0444398,3524.4,3524.3,0.03844005]
[1718179015099,0.0444398,3524.4,3524.2,3.16188883]
[1718179015307,0.0444398,3524.4,3524.3,0.03844005]
[1718179015598,0.0444398,3524.4,3524.2,1.19106179]
[1718179015802,0.0444398,3524.4,3524.3,0.03844005]
[1718179015977,0.0444398,3524.4,3524.3,0.92664596]
[1718179016385,0.0444398,3524.4,3524.3,0.03844005]
[1718179016586,0.0444398,3524.4,3524.2,3.16188883]
[1718179016786,0.0444398,3524.4,3524.3,0.03847498]
[1718179016998,0.0444398,3524.4,3524.2,3.16188883]
[1718179017165,0.0444398,3524.4,3524.3,0.03847498]
[1718179017497,0.0444398,3524.4,3524.2,3.16188883]
[1718179017696,0.0444398,3524.4,3524.3,0.03847498]
[1718179017902,0.0444398,3524.4,3524.2,3.16188883]
[1718179018063,0.0444398,3524.4,3524.3,0.03847498]
[1718179018269,0.0444398,3524.4,3524.3,0.88826265]
[1718179018710,0.0444398,3524.4,3524.3,0.92673763]
[1718179025721,0.0444398,3524.4,3524.3,0.98347846]
[1718179026088,0.0444398,3524.4,3524.3,1.85247846]
[1718179033015,0.0444398,3524.4,3524.3,0.96421581]
[1718179033630,0.0444398,3524.4,3524.3,1.85286527]
[1718179036229,0.0444398,3524.4,3524.3,0.96421581]
[1718179041034,0.0444398,3524.4,3524.3,1.85294869]
[1718179042116,0.0444398,3524.4,3524.3,0.96421581]
[1718179043302,0.0444398,3524.4,3524.3,0.90747498]
[1718179045141,0.0444398,3524.4,3524.3,2.09853677]
[1718179046431,0.0444398,3524.4,3524.3,0.90747498]
[1718179047752,0.0444398,3524.4,3524.3,0.03847498]
[1718179048064,0.0444398,3524.4,3524.3,2.83744]
[1718179048358,0.0444398,3524.4,3524.3,6.33764975]
[1718179048652,0.0444398,3524.4,3524.3,7.986415]
[1718179049210,0.0444398,3524.4,3524.3,9.46738972]
[1718179049635,0.0444398,3524.4,3524.3,7.986415]
[1718179050052,0.0444398,3524.4,3524.3,9.46739135]
[1718179050641,0.0444398,3524.4,3524.3,7.986415]
[1718179051052,0.0444398,3524.4,3524.3,8.59816596]
[1718179051351,0.0444398,3524.4,3524.3,9.46716596]
[1718179051553,0.0444398,3524.4,3524.3,7.986415]
[1718179052646,0.0444398,3524.4,3524.3,9.46716596]
[1718179053857,0.0444398,3524.4,3524.3,6.32746596]
[1718179054159,0.0444398,3524.4,3524.3,2.009275]
[1718179054514,0.0444398,3524.4,3524.3,0.03844796]
[1718179054924,0.0444398,3524.4,3524.2,0.88854041]
[1718179055253,0.0444398,3524.4,3524.3,0.03822453]
[1718179055430,0.0444398,3524.4,3524.3,0.63062951]
[1718179056153,0.0444398,3524.4,3524.3,0.92676494]
[1718179056350,0.0444398,3524.4,3524.3,0.03822453]
[1718179056734,0.0444398,3524.4,3524.2,0.88854041]
[1718179056933,0.0444398,3524.4,3524.3,0.03822453]
[1718179057252,0.0444398,3524.4,3524.2,0.88854041]
[1718179057456,0.0444398,3524.4,3524.3,0.92676494]
[1718179059456,0.0444398,3524.4,3524.3,0.03822453]
[1718179059621,0.0444398,3524.4,3524.2,0.88854041]
[1718179059821,0.0444398,3524.4,3524.3,0.03822453]
[1718179060051,0.0444398,3524.4,3524.2,0.88854041]
[1718179060252,0.0444398,3524.4,3524.3,0.03822453]
[1718179060632,0.0444398,3524.4,3524.2,0.88854041]
[1718179060833,0.0444398,3524.4,3524.3,0.03822453]
[1718179061158,0.0444398,3524.4,3524.2,0.88854041]
[1718179061326,0.0444398,3524.4,3524.3,0.24551801]
[1718179061522,0.0444398,3524.4,3524.3,1.13405842]
[1718179062426,0.0444398,3524.4,3524.3,0.24551801]
[1718179063046,0.0444398,3524.4,3524.3,1.13429669]
[1718179063455,0.0444398,3524.4,3524.3,0.24551801]
[1718179063632,0.0444398,3524.4,3524.3,1.42991236]
[1718179065129,0.0444398,3524.4,3524.3,3.84221236]
[1718179065331,0.0444398,3524.4,3524.3,9.04764505]
[1718179065742,0.0444398,3524.4,3524.3,8.90544505]
[1718179065941,0.0444398,3524.4,3524.3,10.53817498]
[1718179066541,0.0444398,3524.4,3524.3,12.31380479]
[1718179066861,0.0444398,3524.4,3524.3,10.53817498]
[1718179067069,0.0444398,3524.4,3524.3,8.07456499]
[1718179067241,0.0444398,3524.4,3524.3,9.8498261]
[1718179067443,0.0444398,3524.4,3524.3,10.7188261]
[1718179070533,0.0444398,3524.4,3524.3,8.94356499]
[1718179071060,0.0444398,3524.4,3524.3,10.7188261]
[1718179071462,0.0444398,3524.4,3524.3,8.94356499]
[1718179073034,0.0444398,3524.4,3524.3,10.7188261]
[1718179073339,0.0444398,3524.4,3524.3,11.40717498]
[1718179073548,9.8e-06,3524.4,3524.3,8.94356499]
[1718179073732,9.8e-06,3524.4,3524.3,11.40717498]
[1718179077458,9.8e-06,3524.4,3524.3,8.94356499]
[1718179077660,9.8e-06,3524.4,3524.3,11.40717498]
[1718179080336,9.8e-06,3524.4,3524.3,10.53817498]
[1718179080671,5.0,3525.0,3524.9,2.83695]
[1718179080870,5.0,3525.0,3524.9,4.29219752]
[1718179081172,5.0,3525.0,3524.9,5.76885177]
[1718179081471,5.0,3525.0,3524.9,7.73967881]
[1718179082167,5.0,3525.0,3524.9,10.57662881]
[1718179082940,5.0,3525.0,3524.9,9.09997456]
[1718179083171,5.0,3525.0,3524.9,13.28012418]
[1718179084076,5.0,3525.0,3524.9,12.09997456]
[1718179084243,5.0,3525.0,3524.9,13.27993212]
[1718179084972,5.0,3525.0,3524.9,9.09997456]
[1718179085563,5.0,3525.0,3524.9,10.5751771]
[1718179085750,5.0,3525.0,3524.9,10.57442782]
[1718179087074,5.0,3525.0,3524.9,9.09997456]
[1718179087654,2.4294,3525.7,3525.6,2.83639]
[1718179087851,2.4294,3525.7,3525.6,4.25539]
[1718179088186,2.4294,3525.7,3525.6,4.29108737]
[1718179091785,7.4201,3526.1,3526.0,2.83607]
[1718179092285,7.4201,3526.1,3526.0,2.87140544]
[1718179093402,7.4201,3526.1,3526.0,3.24544598]
[1718179093403,5.0,3526.1,3526.0,3.24544598]
[1718179093556,5.0,3526.1,3526.0,6.79544598]
[1718179094474,5.0,3526.1,3526.0,7.66444598]
[1718179095566,5.0,3526.1,3526.0,6.79544598]
[1718179095771,5.0,3526.1,3526.0,7.66444598]
[1718179095980,5.0,3526.1,3526.0,6.79544598]
[1718179096151,5.0,3526.1,3526.0,7.66444598]
[1718179097985,5.0,3526.1,3526.0,6.79544598]
[1718179098185,5.0,3526.1,3526.0,3.74040544]
[1718179098352,7.4897,3526.1,3526.0,2.87140544]
[1718179098551,7.4897,3526.1,3526.0,3.74040544]
[1718179099089,7.4897,3526.1,3526.0,2.87140544]
[1718179099453,7.4897,3526.1,3526.0,3.74040544]
[1718179100994,7.4897,3526.1,3526.0,2.87140544]
[1718179105295,7.4897,3526.1,3526.0,3.74040544]
[1718179105664,7.4897,3526.1,3526.0,2.87140544]
[1718179108993,7.4897,3526.1,3526.0,0.03533544]
[1718179109292,7.4897,3526.1,3525.6,2.83634]
[1718179109457,7.4897,3526.1,3525.7,0.03217765]
[1718179110273,7.4397,3526.1,3525.7,0.03217765]
[1718179111196,7.4397,3526.1,3525.7,0.62261681]
[1718179111399,7.4397,3526.1,3525.8,0.59043916]
[1718179111696,7.4397,3526.1,3525.9,0.03204415]
[1718179111992,7.4397,3526.1,3525.8,0.59043916]
[1718179112184,7.4397,3526.1,3526.0,0.0319774]
[1718179112386,7.4397,3526.1,3525.9,0.03204415]
[1718179112697,7.4397,3526.1,3526.0,0.0319774]
[1718179112891,7.4397,3526.1,3525.8,0.59043916]
[1718179113100,7.4397,3526.1,3526.0,0.0319774]
[1718179113398,7.4397,3526.1,3525.8,0.59043916]
[1718179113605,7.4397,3526.1,3526.0,0.0319774]
[1718179113901,7.4397,3526.1,3526.0,0.03204671]
[1718179114086,4.95,3526.1,3526.0,1.50776509]
[1718179114261,4.95,3526.1,3526.0,2.09820425]
[1718179114467,4.95,3526.1,3526.0,4.36311932]
[1718179114676,4.95,3526.1,3526.0,4.30640094]
[1718179117605,4.95,3526.1,3526.0,3.42074219]
[1718179118303,4.95,3526.1,3526.0,4.60162052]
[1718179119299,4.95,3526.1,3526.0,3.73262052]
[1718179119505,4.95,3526.1,3526.0,2.55174219]
[1718179119713,4.95,3526.1,3526.0,0.58204671]
[1718179120584,4.95,3526.1,3526.0,3.43835348]
[1718179120785,4.95,3526.1,3526.0,1.468658]
[1718179121508,4.95,3526.1,3526.0,1.46887625]
[1718179121677,4.95,3526.1,3526.0,0.58204671]
[1718179123004,4.95,3526.1,3526.0,2.55174219]
[1718179123213,4.95,3526.1,3526.0,0.58204671]
[1718179123376,4.95,3526.1,3526.0,1.76292504]
[1718179123982,4.95,3526.1,3526.0,0.58204671]
[1718179125301,4.95,3526.1,3526.0,3.18454491]
[1718179125502,4.95,3526.1,3526.0,0.03204671]
[1718179125704,8.87255,3526.1,3526.0,0.91934644]
[1718179126017,8.87255,3526.1,3526.0,0.03204671]
[1718179126389,2.3224,3526.0,3525.7,0.59176865]
[1718179127216,2.3224,3526.0,3525.6,0.59176865]
[1718179128919,2.3224,3526.0,3525.7,0.59176865]
[1718179129446,2.3224,3526.0,3525.8,0.59176865]
[1718179130817,2.3224,3526.0,3525.9,0.59176865]
[1718179132220,2.3224,3526.0,3525.8,0.88729973]
[1718179132432,4.95,3526.1,3525.9,2.83615]
[1718179132635,4.95,3526.1,3526.0,0.59164045]
[1718179132935,4.95,3526.1,3525.9,5.98900786]
[1718179133090,4.95,3526.1,3526.0,1.97005514]
[1718179133290,4.95,3526.1,3525.9,4.01895272]
[1718179133291,4.95,3526.1,3525.9,5.98900786]
[1718179134611,4.95,3526.1,3526.0,0.08825887]
[1718179134817,4.95,3526.1,3526.0,0.58154157]
[1718179135134,4.95,3526.1,3526.0,3.00224157]
[1718179135439,4.95,3526.1,3526.0,4.66011521]
[1718179136410,4.95,3526.1,3526.0,5.20114938]
[1718179137320,4.95,3526.1,3526.0,4.95615951]
[1718179138740,4.95,3526.1,3526.0,4.89944373]
[1718179138904,4.95,3526.1,3526.0,2.55159671]
[1718179140536,4.95,3526.1,3526.0,3.73460139]
[1718179141045,4.95,3526.1,3526.0,2.55159671]
[1718179144806,4.95,3526.1,3526.0,4.03044373]
[1718179145313,4.95,3526.1,3526.0,3.42059671]
[1718179150458,4.95,3526.1,3526.0,4.89944373]
[1718179150616,4.95,3526.1,3526.0,5.14443507]
[1718179150815,4.95,3526.1,3526.0,3.6655875]
[1718179151728,4.95,3526.1,3526.0,6.0871875]
[1718179153516,4.95,3526.1,3526.0,5.84219671]
[1718179153877,4.95,3526.1,3526.0,6.0871841]
[1718179154019,4.95,3526.1,3526.0,5.84219671]
[1718179155027,4.95,3526.1,3526.0,6.08717846]
[1718179155646,4.95,3526.1,3526.0,5.84219671]
[1718179155951,4.95,3526.1,3526.0,6.08718196]
[1718179156517,4.95,3526.1,3526.0,7.32032639]
[1718179157034,4.95,3526.1,3526.0,4.89872639]
[1718179157364,4.95,3526.1,3526.0,4.27471686]
[1718179157654,4.95,3526.1,3526.0,4.89872639]
[1718179158058,4.95,3526.1,3526.0,5.14371615]
[1718179158757,4.95,3526.1,3526.0,4.27471615]
[1718179158934,4.95,3526.1,3526.0,5.14371615]
[1718179159136,4.95,3526.1,3526.0,3.66559241]
[1718179160453,4.95,3526.1,3526.0,2.79659241]
[1718179160655,4.95,3526.1,3526.0,1.69553727]
[1718179162126,4.95,3526.1,3526.0,1.45054157]
[1718179169482,4.95,3526.1,3526.0,0.58154157]
[1718179171483,7.2183,3526.1,3526.0,0.03154157]
[1718179171848,7.2183,3526.1,3525.7,0.55]
[1718179172053,7.2183,3526.1,3526.0,0.03145066]
[1718179172359,7.2183,3526.1,3525.7,0.55]
[1718179172553,7.2183,3526.1,3526.0,0.03145066]
[1718179172753,7.2183,3526.1,3525.7,0.55]
[1718179172983,7.2183,3526.1,3526.0,0.03145066]
[1718179173178,7.2183,3526.1,3525.7,0.55]
[1718179173394,7.2183,3526.1,3526.0,0.03145066]
[1718179173694,7.2183,3526.1,3525.7,0.55]
[1718179174366,7.2183,3526.1,3525.8,0.03158418]
[1718179174875,7.2183,3526.1,3525.6,0.55]
[1718179175075,7.2183,3526.1,3525.9,0.03151742]
[1718179175277,7.2183,3526.1,3525.6,0.55]
[1718179175657,7.2183,3526.1,3525.7,0.03165095]
[1718179176180,2.3348,3526.0,3525.5,2.8364]
[1718179176397,2.3348,3526.0,3525.8,0.03158418]
[1718179176576,2.3348,3526.0,3525.5,2.8364]
[1718179177188,2.3348,3526.0,3525.6,0.03175263]
[1718179178904,2.3348,3526.0,3525.8,0.59179285]
[1718179179395,2.3348,3526.0,3525.9,0.03083406]
[1718179179684,2.3348,3526.0,3525.8,0.59179285]
[1718179179857,2.3348,3526.0,3525.9,0.03083406]
[1718179180269,2.3348,3526.0,3525.8,0.59179285]
[1718179180462,2.3348,3526.0,3525.9,0.03083406]
[1718179180876,2.3348,3526.0,3525.8,0.59179285]
[1718179181081,2.3348,3526.0,3525.9,0.03083406]
[1718179181380,2.3348,3526.0,3525.8,0.59179285]
[1718179181685,2.3348,3526.0,3525.9,0.03086897]
[1718179181889,2.3348,3526.0,3525.8,0.59179285]
[1718179182112,2.3348,3526.0,3525.7,0.59179285]
[1718179182269,2.3348,3526.0,3525.9,0.03079916]
[1718179182461,2.3348,3526.0,3525.7,0.59179285]
[1718179182666,2.3348,3526.0,3525.8,0.03086592]
[1718179185002,3.2038,3526.0,3525.8,0.03086592]
[1718179185205,0.869,3526.0,3525.8,0.03086592]
[1718179185408,2.3821,3525.9,3525.8,0.03086592]
[1718179186512,2.3821,3525.9,3525.6,0.59179285]
[1718179186808,2.3821,3525.9,3525.8,0.03086592]
[1718179186972,2.3821,3525.9,3525.7,0.62272554]
[1718179187173,2.3821,3525.9,3525.8,0.03086592]
[1718179187673,2.3821,3525.9,3525.6,0.59179285]
[1718179187882,2.3821,3525.9,3525.7,0.03099859]
[1718179189579,2.3821,3525.9,3525.7,0.62279144]
[1718179191367,4.95,3526.1,3525.7,3.45910144]
[1718179191782,4.95,3526.1,3525.8,0.59179285]
[1718179191972,4.95,3526.1,3525.8,0.62275958]
[1718179192579,4.95,3526.1,3525.9,0.59179285]
[1718179192781,4.95,3526.1,3525.9,0.62269281]
[1718179192987,4.95,3526.1,3525.9,0.03089996]
[1718179193186,4.95,3526.1,3525.7,3.42810285]
[1718179193388,4.95,3526.1,3526.0,0.0308332]
[1718179193571,4.95,3526.1,3525.7,3.42810285]
[1718179193777,4.95,3526.1,3526.0,0.0308332]
[1718179193978,4.95,3526.1,3525.8,0.59179285]
[1718179194296,4.95,3526.1,3526.0,0.0308332]
[1718179194495,4.95,3526.1,3525.9,0.03089996]
[1718179194711,4.95,3526.1,3526.0,0.0308332]
[1718179195005,4.95,3526.1,3525.8,0.59179285]
[1718179195210,4.95,3526.1,3526.0,0.0308332]
[1718179195411,4.95,3526.1,3525.9,0.03089996]
[1718179195618,4.95,3526.1,3526.0,0.0308332]
[1718179195982,4.95,3526.1,3525.8,0.59179285]
[1718179196179,4.95,3526.1,3526.0,0.0308332]
[1718179196810,4.95,3526.1,3525.8,0.59179285]
[1718179197005,4.95,3526.1,3526.0,0.0308332]
[1718179197527,4.95,3526.1,3525.8,0.59179285]
[1718179197885,4.95,3526.1,3526.0,0.0308332]
[1718179198085,4.95,3526.1,3525.9,0.03089996]
[1718179198285,4.95,3526.1,3526.0,0.0308332]
[1718179200199,4.95,3526.1,3526.0,0.0099432]
[1718179201512,4.95,3526.1,3526.0,0.60120063]
[1718179201816,4.95,3526.1,3526.0,0.0099432]
[1718179202484,4.95,3526.1,3526.0,0.60120063]
[1718179204736,4.95,3526.1,3526.0,2.8460132]
[1718179204942,4.95,3526.1,3526.0,5.8332132]
[1718179205301,4.95,3526.1,3526.0,7.80311314]
[1718179205849,4.95,3526.1,3526.0,9.28125673]
[1718179205998,4.95,3526.1,3526.0,9.47614295]
[1718179206409,4.95,3526.1,3526.0,9.47612116]
[1718179207212,4.95,3526.1,3526.0,9.47582233]
[1718179207511,4.95,3526.1,3526.0,9.2810324]
[1718179207912,4.95,3526.1,3526.0,9.47578913]
[1718179208336,4.95,3526.1,3526.0,9.2810324]
[1718179208955,4.95,3526.1,3526.0,9.28036213]
[1718179211230,4.95,3526.1,3526.0,10.14936213]
[1718179213034,4.95,3526.1,3526.0,10.14890376]
[1718179213434,4.95,3526.1,3526.0,8.67211314]
[1718179213980,4.95,3526.1,3526.0,11.85119031]
[1718179215452,4.95,3526.1,3526.0,11.84124711]
[1718179217620,4.95,3526.1,3526.0,11.66216994]
[1718179218224,4.95,3526.1,3526.0,10.79316994]
[1718179218428,4.95,3526.1,3526.0,13.13766894]
[1718179221441,4.95,3526.1,3526.0,12.26866894]
[1718179221672,4.95,3526.1,3526.0,13.13766894]
[1718179221972,4.95,3526.1,3526.0,11.66216994]
[1718179222194,4.95,3526.1,3526.0,13.13720283]
[1718179222778,4.95,3526.1,3526.0,11.66216994]
[1718179225147,4.95,3526.1,3526.0,8.35596994]
[1718179225351,4.95,3526.1,3526.0,9.53608578]
[1718179225549,4.95,3526.1,3526.0,10.40508578]
[1718179225948,4.95,3526.1,3526.0,12.70958578]
[1718179226240,4.95,3526.1,3526.0,11.52946994]
[1718179226632,4.95,3526.1,3526.0,13.18351247]
[1718179227979,4.95,3526.1,3526.0,11.70855075]
[1718179228169,4.95,3526.1,3526.0,13.18351247]
[1718179228681,4.95,3526.1,3526.0,12.31451247]
[1718179228890,4.95,3526.1,3526.0,13.18351247]
[1718179229976,4.95,3526.1,3526.0,10.01001247]
[1718179230203,4.95,3526.1,3526.0,10.87901247]
[1718179230408,4.95,3526.1,3526.0,9.40405075]
[1718179231822,4.95,3526.1,3526.0,9.40404613]
[1718179235324,4.95,3526.1,3526.0,8.53504613]
[1718179235625,4.95,3526.1,3526.0,9.7156726]
[1718179235818,4.95,3526.1,3526.0,8.53504613]
[1718179236021,4.95,3526.1,3526.0,9.24146873]
[1718179236800,4.95,3526.1,3526.0,6.24146873]
[1718179237200,4.95,3526.1,3526.0,7.27156879]
[1718179237416,4.95,3526.1,3526.0,9.24146873]
[1718179237642,4.95,3526.1,3526.0,8.69146873]
[1718179237846,7.2904,3526.1,3526.0,8.69146873]
[1718179238160,7.2904,3526.1,3526.0,6.42661522]
[1718179238732,4.95,3526.1,3526.0,6.42661522]
[1718179239144,7.2904,3526.1,3526.0,6.42661522]
[1718179239459,8.01944,3526.1,3525.9,0.59054522]
[1718179239629,0.869,3526.0,3525.8,0.59054522]
[1718179239820,2.4552,3525.9,3525.7,0.59054522]
[1718179240022,2.4552,3525.9,3525.6,2.83636]
[1718179240548,2.4552,3525.9,3525.6,3.42690522]
[1718179240759,3.355524,3525.9,3525.6,3.42690522]
[1718179241050,3.355524,3525.9,3525.6,2.83636]
[1718179242149,3.355524,3525.9,3525.6,3.42690522]
[1718179242351,2.4552,3525.9,3525.6,3.42690522]
[1718179242514,2.4552,3525.9,3525.6,2.83636]
[1718179244948,2.4552,3525.9,3525.5,0.59054522]
[1718179246381,2.4552,3525.9,3525.4,3.59054522]
[1718179247082,2.4552,3525.9,3525.5,3.59054522]
[1718179247289,2.4552,3525.9,3525.4,0.59054522]
[1718179247889,7.2393,3526.1,3525.5,1.14054522]
[1718179248367,7.2393,3526.1,3525.6,2.89310282]
[1718179248684,7.2393,3526.1,3525.8,3.42675522]
[1718179248685,4.95,3526.1,3525.8,3.42675522]
[1718179249052,4.95,3526.1,3526.0,3.42661522]
[1718179249379,4.95,3526.1,3526.0,3.97661522]
[1718179250979,4.95,3526.1,3526.0,6.38607]
[1718179257096,4.95,3526.1,3526.0,6.97622634]
[1718179261139,4.95,3526.1,3526.0,3.59015634]
[1718179261431,4.95,3526.1,3525.8,1.47565513]
[1718179261587,4.95,3526.1,3525.8,0.59015634]
[1718179262388,0.869,3526.0,3525.8,0.59015634]
[1718179262704,2.9886,3525.9,3525.7,0.59015634]
[1718179263019,2.4067,3525.9,3525.6,0.59015634]
[1718179263928,2.4067,3525.9,3525.7,0.59015634]
[1718179266089,2.4067,3525.9,3525.6,3.59015634]
[1718179266521,2.4067,3525.9,3525.6,3.0]
[1718179266835,2.4067,3525.9,3525.5,3.42661634]
[1718179266836,3.22927,3525.9,3525.5,3.42661634]
[1718179267054,3.22927,3525.9,3525.5,2.83646]
[1718179271399,2.4067,3525.9,3525.5,2.83646]
[1718179274115,2.4067,3525.9,3525.4,0.59015634]
[1718179274296,2.4067,3525.9,3525.4,3.59015634]
[1718179275050,2.4067,3525.9,3525.5,0.59015634]
[1718179275263,4.95,3526.1,3525.7,2.83623]
[1718179275420,4.95,3526.1,3525.8,0.59015634]
[1718179275744,4.95,3526.1,3525.9,2.83615]
[1718179276120,4.95,3526.1,3525.9,3.42630634]
[1718179276431,4.95,3526.1,3526.0,0.55]
[1718179276999,4.95,3526.1,3526.0,1.43549879]
[1718179277550,4.95,3526.1,3526.0,4.43549879]
[1718179278073,4.95,3526.1,3526.0,6.40522996]
[1718179279665,4.95,3526.1,3526.0,7.90973117]
[1718179281452,4.95,3526.1,3526.0,5.51973117]
[1718179282634,4.95,3526.1,3526.0,6.4062871]
[1718179285076,4.95,3526.1,3526.0,3.0]
[1718179285841,7.2111,3526.1,3526.0,3.0]
[1718179286241,7.2111,3526.1,3525.9,3.42734104]
[1718179286569,7.2111,3526.1,3525.9,2.83615]
[1718179289309,7.2111,3526.1,3525.9,3.42734104]
[1718179289446,7.2111,3526.1,3525.8,0.59119104]
[1718179289651,7.2111,3526.1,3525.8,3.59119104]
[1718179289851,7.2111,3526.1,3525.8,0.59119104]
[1718179291575,7.2111,3526.1,3525.8,3.59119104]
[1718179291793,7.2111,3526.1,3525.8,0.59119104]
[1718179291969,7.2111,3526.1,3525.9,0.59119104]
[1718179294757,7.2111,3526.1,3525.9,3.59119104]
[1718179295184,7.2111,3526.1,3526.0,0.59119104]
[1718179295460,4.95,3526.1,3525.9,0.59119104]
[1718179295668,4.95,3526.1,3525.9,3.42731104]
[1718179295866,4.95,3526.1,3526.0,0.59119104]
[1718179300578,4.95,3526.1,3525.9,3.42731104]
[1718179301382,4.95,3526.1,3526.0,0.59119104]
[1718179302387,7.4059,3526.1,3526.0,0.59119104]
[1718179302709,7.4059,3526.1,3525.9,2.83612]
[1718179302943,7.4059,3526.1,3525.8,0.59119104]
[1718179303084,1.69649,3526.0,3525.7,0.59119104]
[1718179303294,2.4559,3525.9,3525.7,0.59119104]
[1718179303520,2.4559,3525.9,3525.5,3.42760104]
[1718179304364,2.4559,3525.9,3525.6,0.59119104]
[1718179304634,0.869,3525.8,3525.5,0.59119104]
[1718179304795,0.869,3525.6,3525.4,0.59119104]